[Event "Championnat du monde jeunes U12F"]
[Date "2024.11.16"]
[White "Bogomolnikova, Zlata"]
[Black "Petrusic, Dusica"]
[WhiteElo "1628"]
[BlackElo "1498"]
[Round "2.35"]
[Result "1-0"]
[TimeControl "5400+30"]

1. d4 {[%clk 1:30:52]} 1... d5 {[%clk 1:30:54]} 2. c4 {[%clk 1:31:17]} 2... c6
{[%clk 1:31:18]} 3. cxd5 {[%clk 1:31:42]} 3... cxd5 {[%clk 1:31:38]} 4. Nc3
{[%clk 1:32:06]} 4... Nf6 {[%clk 1:31:46]} 5. Bf4 {[%clk 1:31:31]} 5... Nc6
{[%clk 1:29:22]} 6. e3 {[%clk 1:31:13]} 6... a6 {[%clk 1:27:54]} 7. Be2 {[%clk
1:28:26]} 7... e6 {[%clk 1:23:53]} 8. Nf3 {[%clk 1:26:33]} 8... Bb4 {[%clk
1:22:17]} 9. O-O {[%clk 1:25:47]} 9... O-O {[%clk 1:21:44]} 10. Rc1 {[%clk
1:24:37]} 10... h6 {[%clk 1:16:07]} 11. a3 {[%clk 1:21:18]} 11... Bd6 {[%clk
1:16:10]} 12. Bxd6 {[%clk 1:20:20]} 12... Qxd6 {[%clk 1:16:24]} 13. h3 {[%clk
1:18:33]} 13... Rd8 {[%clk 1:13:20]} 14. Na4 {[%clk 1:15:46]} 14... b5 {[%clk
1:10:00]} 15. Nc5 {[%clk 1:15:38]} 15... Nd7 {[%clk 1:08:49]} 16. Qd2 {[%clk
1:12:21]} 16... Nxc5 {[%clk 1:08:35]} 17. Rxc5 {[%clk 1:11:13]} 17... e5 {[%clk
1:04:40]} 18. Rfc1 {[%clk 1:09:43]} 18... Bb7 {[%clk 1:04:06]} 19. dxe5 {[%clk
1:06:28]} 19... Nxe5 {[%clk 1:03:47]} 20. Nxe5 {[%clk 1:05:50]} 20... Qxe5
{[%clk 1:04:07]} 21. Rc7 {[%clk 1:05:01]} 21... Rab8 {[%clk 1:03:31]} 22. Qb4
{[%clk 1:00:02]} 22... Qd6 {[%clk 0:59:34]} 23. Qd4 {[%clk 0:58:32]} 23... Rd7
{[%clk 0:56:55]} 24. Qa7 {[%clk 0:53:00]} 24... Rc8 {[%clk 0:36:20]} 25. Rxc8+
{[%clk 0:53:03]} 25... Bxc8 {[%clk 0:36:26]} 26. Rxc8+ {[%clk 0:53:25]} 26...
Kh7 {[%clk 0:36:51]} 27. Qd4 {[%clk 0:52:22]} 27... Rc7 {[%clk 0:34:16]} 28.
Bd3+ {[%clk 0:52:37]} 28... g6 {[%clk 0:34:01]} 29. Rh8# {[%clk 0:53:01]} 1-0

[Variant "Standard"]
[Site "Europe Echecs"]

[Event "Championnat du monde jeunes U12F"]
[Date "2024.11.16"]
[White "Canossa, Elena"]
[Black "Muradova, Nebahat"]
[WhiteElo "1482"]
[BlackElo "1626"]
[Round "2.36"]
[Result "0-1"]
[TimeControl "5400+30"]

1. e4 {[%clk 1:30:57]} 1... e6 {[%clk 1:30:54]} 2. d4 {[%clk 1:31:21]} 2... d5
{[%clk 1:31:16]} 3. exd5 {[%clk 1:31:46]} 3... exd5 {[%clk 1:31:39]} 4. Bd3
{[%clk 1:32:09]} 4... Bd6 {[%clk 1:31:52]} 5. Qf3 {[%clk 1:32:26]} 5... h6
{[%clk 1:26:42]} 6. h3 {[%clk 1:19:06]} 6... Nf6 {[%clk 1:26:31]} 7. Ne2 {[%clk
1:18:40]} 7... Be6 {[%clk 1:24:11]} 8. Bf4 {[%clk 1:15:23]} 8... Nc6 {[%clk
1:13:09]} 9. c3 {[%clk 1:09:24]} 9... Qe7 {[%clk 1:11:07]} 10. Bxd6 {[%clk
1:07:19]} 10... Qxd6 {[%clk 1:11:18]} 11. Qf4 {[%clk 1:04:09]} 11... Qxf4 {[%clk
1:08:43]} 12. Nxf4 {[%clk 1:04:27]} 12... O-O-O {[%clk 1:08:37]} 13. Nd2 {[%clk
0:54:42]} 13... g5 {[%clk 1:00:40]} 14. Nxe6 {[%clk 0:53:56]} 14... fxe6 {[%clk
1:01:08]} 15. O-O-O {[%clk 0:54:08]} 15... e5 {[%clk 0:57:01]} 16. Nb3 {[%clk
0:45:51]} 16... exd4 {[%clk 0:55:26]} 17. Bf5+ {[%clk 0:45:50]} 17... Kb8 {[%clk
0:55:35]} 18. Nxd4 {[%clk 0:45:22]} 18... Nxd4 {[%clk 0:55:40]} 19. Rxd4 {[%clk
0:40:57]} 19... Rhe8 {[%clk 0:54:52]} 20. h4 {[%clk 0:32:19]} 20... Re5 {[%clk
0:51:46]} 21. hxg5 {[%clk 0:31:33]} 21... hxg5 {[%clk 0:51:57]} 22. g4 {[%clk
0:29:15]} 22... c5 {[%clk 0:50:50]} 23. Rd2 {[%clk 0:26:14]} 23... Ne8 {[%clk
0:23:55]} 24. Rh5 {[%clk 0:24:39]} 24... Ng7 {[%clk 0:22:47]} 25. Rxg5 {[%clk
0:24:27]} 25... Nxf5 {[%clk 0:23:09]} 26. Rxf5 {[%clk 0:24:48]} 26... Rxf5
{[%clk 0:23:27]} 27. gxf5 {[%clk 0:25:12]} 27... Kc7 {[%clk 0:23:18]} 28. f6
{[%clk 0:23:42]} 28... Kd6 {[%clk 0:23:04]} 29. Re2 {[%clk 0:23:06]} 29... Rd7
{[%clk 0:22:53]} 30. Re7 {[%clk 0:20:56]} 30... Rxe7 {[%clk 0:22:16]} 31. fxe7
{[%clk 0:21:19]} 31... Kxe7 {[%clk 0:22:39]} 32. Kd2 {[%clk 0:21:42]} 32... Kf6
{[%clk 0:22:51]} 33. b4 {[%clk 0:21:47]} 33... b6 {[%clk 0:22:23]} 34. Kd3
{[%clk 0:21:39]} 34... Kf5 {[%clk 0:21:49]} 35. a3 {[%clk 0:19:21]} 35... Kf4
{[%clk 0:20:20]} 36. a4 {[%clk 0:17:13]} 36... a5 {[%clk 0:19:28]} 37. Ke2
{[%clk 0:10:08]} 37... axb4 {[%clk 0:16:43]} 38. cxb4 {[%clk 0:10:17]} 38...
cxb4 {[%clk 0:17:08]} 39. Kd2 {[%clk 0:09:08]} 39... Kf3 {[%clk 0:16:21]} 40.
Kc2 {[%clk 0:08:56]} 40... d4 {[%clk 0:16:36]} 41. Kb3 {[%clk 0:09:03]} 41... d3
{[%clk 0:17:01]} 42. Kxb4 {[%clk 0:09:17]} 42... d2 {[%clk 0:17:26]} 43. Kb5
{[%clk 0:09:43]} 43... d1=Q {[%clk 0:17:42]} 44. Kxb6 {[%clk 0:09:57]} 44...
Qxa4 {[%clk 0:18:06]} 45. Kc5 {[%clk 0:10:16]} 45... Qd7 {[%clk 0:18:24]} 46.
Kc4 {[%clk 0:10:38]} 46... Qd6 {[%clk 0:18:44]} 47. Kc3 {[%clk 0:10:58]} 47...
Qd5 {[%clk 0:19:09]} 48. Kc2 {[%clk 0:11:25]} 48... Qd4 {[%clk 0:19:31]} 49. Kc1
{[%clk 0:11:49]} 49... Qxf2 {[%clk 0:19:41]} 50. Kb1 {[%clk 0:12:13]} 50... Qd2
{[%clk 0:20:06]} 51. Ka1 {[%clk 0:12:35]} 51... Ke3 {[%clk 0:20:33]} 52. Kb1
{[%clk 0:13:01]} 52... Kd3 {[%clk 0:20:57]} 53. Ka1 {[%clk 0:13:28]} 53... Kc3
{[%clk 0:21:20]} 54. Kb1 {[%clk 0:13:53]} 54... Qb2# {[%clk 0:21:44]} 0-1

[Variant "Standard"]
[Site "Europe Echecs"]

[Event "Championnat du monde jeunes U12F"]
[Date "2024.11.16"]
[White "Yang, Hayeon"]
[Black "Stepankova, Linda"]
[WhiteElo "1482"]
[BlackElo "1624"]
[Round "2.37"]
[Result "0-1"]
[TimeControl "5400+30"]

1. d4 {[%clk 1:30:50]} 1... d5 {[%clk 1:30:46]} 2. Bf4 {[%clk 1:31:06]} 2... Nf6
{[%clk 1:30:15]} 3. e3 {[%clk 1:31:13]} 3... e6 {[%clk 1:30:20]} 4. Nf3 {[%clk
1:30:54]} 4... c5 {[%clk 1:27:54]} 5. c4 {[%clk 1:28:43]} 5... Bd6 {[%clk
1:22:35]} 6. Bxd6 {[%clk 1:27:50]} 6... Qxd6 {[%clk 1:21:53]} 7. Nbd2 {[%clk
1:27:17]} 7... O-O {[%clk 1:20:01]} 8. Be2 {[%clk 1:27:21]} 8... Qb6 {[%clk
1:18:51]} 9. b3 {[%clk 1:26:30]} 9... Nc6 {[%clk 1:18:27]} 10. dxc5 Qxc5 11. O-O
{[%clk 1:22:41]} 11... e5 {[%clk 1:12:25]} 12. cxd5 {[%clk 1:19:26]} 12... Qxd5
{[%clk 1:08:53]} 13. Nc4 {[%clk 1:18:58]} 13... Qxd1 {[%clk 1:00:12]} 14. Rfxd1
{[%clk 1:18:47]} 14... e4 {[%clk 0:53:12]} 15. Nd4 {[%clk 1:17:52]} 15... Bd7
{[%clk 0:37:17]} 16. f3 {[%clk 1:14:18]} 16... Nxd4 {[%clk 0:33:56]} 17. exd4
{[%clk 1:14:09]} 17... Bc6 {[%clk 0:33:05]} 18. fxe4 {[%clk 1:13:16]} 18... Bxe4
{[%clk 0:32:52]} 19. Ne5 {[%clk 1:12:48]} 19... Rfd8 {[%clk 0:32:13]} 20. Bf3
{[%clk 1:12:34]} 20... Bxf3 {[%clk 0:32:14]} 21. Nxf3 {[%clk 1:12:47]} 21... Rd6
{[%clk 0:31:34]} 22. Rac1 {[%clk 1:12:27]} 22... Nd5 {[%clk 0:31:42]} 23. Re1
{[%clk 1:11:21]} 23... Kf8 {[%clk 0:30:50]} 24. Ng5 {[%clk 1:10:55]} 24... h6
{[%clk 0:27:48]} 25. Ne4 {[%clk 1:11:11]} 25... Rg6 {[%clk 0:21:52]} 26. Ng3
{[%clk 1:09:22]} 26... Rd8 {[%clk 0:19:11]} 27. a3 {[%clk 1:09:00]} 27... Rg4
{[%clk 0:11:30]} 28. Rc4 {[%clk 1:08:02]} 28... Rf4 {[%clk 0:01:00]} 29. Rf1
{[%clk 1:07:45]} 29... Rxf1+ {[%clk 0:00:59]} 30. Nxf1 {[%clk 1:07:58]} 30...
Rd6 {[%clk 0:00:41]} 31. Kf2 {[%clk 1:07:48]} 31... Ke7 {[%clk 0:00:43]} 32. Ke2
{[%clk 1:07:43]} 32... Rb6 {[%clk 0:00:40]} 33. b4 {[%clk 1:07:39]} 33... Ra6
{[%clk 0:00:41]} 34. Rc5 {[%clk 1:07:32]} 34... Ke6 {[%clk 0:00:45]} 35. Ra5
{[%clk 1:07:24]} 35... Rxa5 {[%clk 0:00:38]} 36. bxa5 {[%clk 1:07:48]} 36... Kd6
{[%clk 0:00:41]} 37. Ne3 {[%clk 1:08:06]} 37... Ne7 {[%clk 0:00:36]} 38. Kd3
{[%clk 1:08:22]} 38... g6 {[%clk 0:00:35]} 39. Nc4+ {[%clk 1:08:28]} 39... Kd5
{[%clk 0:00:37]} 40. Ne5 {[%clk 1:08:24]} 40... f6 {[%clk 0:00:55]} 41. Nc4
{[%clk 1:08:37]} 41... Nc6 {[%clk 0:00:37]} 42. Ne3+ {[%clk 1:08:43]} 42... Kd6
{[%clk 0:00:36]} 43. Ng4 {[%clk 1:09:00]} 43... f5 {[%clk 0:00:34]} 44. Ne5
{[%clk 1:08:18]} 44... Nxe5+ {[%clk 0:00:48]} 45. dxe5+ {[%clk 1:08:43]} 45...
Kxe5 {[%clk 0:01:12]} 46. Kc4 {[%clk 1:08:04]} 46... Kd6 {[%clk 0:01:31]} 47.
Kb5 {[%clk 1:08:05]} 47... g5 {[%clk 0:01:38]} 48. Kc4 {[%clk 1:08:04]} 48... h5
{[%clk 0:01:56]} 49. Kd4 {[%clk 1:08:19]} 49... h4 {[%clk 0:02:05]} 50. g3
{[%clk 1:07:30]} 50... hxg3 {[%clk 0:02:25]} 51. hxg3 {[%clk 1:07:55]} 51... a6
{[%clk 0:01:31]} 52. a4 {[%clk 1:08:00]} 52... f4 {[%clk 0:01:29]} 53. gxf4
{[%clk 1:07:23]} 53... gxf4 {[%clk 0:01:53]} 54. Ke4 {[%clk 1:07:35]} 54... Kc5
{[%clk 0:02:03]} 55. Kxf4 {[%clk 1:07:56]} 55... Kb4 {[%clk 0:02:27]} 56. Ke3
{[%clk 1:08:12]} 56... Kxa4 {[%clk 0:02:51]} 57. Kd2 {[%clk 1:08:36]} 57... Kxa5
{[%clk 0:03:14]} 58. Kc3 {[%clk 1:09:00]} 58... Kb5 {[%clk 0:03:27]} 59. Kb3
{[%clk 1:09:19]} 59... b6 {[%clk 0:03:47]} 60. Ka3 {[%clk 1:09:29]} 60... Kc4
{[%clk 0:04:12]} 61. Ka4 {[%clk 1:09:32]} 61... b5+ {[%clk 0:04:31]} 62. Ka3
{[%clk 1:09:46]} 62... Kc3 {[%clk 0:04:58]} 63. Ka2 {[%clk 1:09:48]} 63... Kc2
{[%clk 0:04:40]} 64. Ka3 {[%clk 1:09:53]} 64... a5 {[%clk 0:05:05]} 65. Ka2
{[%clk 1:10:09]} 65... b4 {[%clk 0:05:25]} 66. Ka1 {[%clk 1:10:25]} 66... a4
{[%clk 0:05:44]} 67. Ka2 {[%clk 1:10:40]} 67... b3+ {[%clk 0:06:03]} 68. Ka3
{[%clk 1:10:46]} 68... b2 {[%clk 0:06:24]} 69. Kxa4 {[%clk 1:11:11]} 69... b1=Q
{[%clk 0:06:49]} 70. Ka5 {[%clk 1:11:31]} 70... Kc3 {[%clk 0:07:10]} 71. Ka6
{[%clk 1:11:54]} 71... Kc4 {[%clk 0:07:34]} 72. Ka7 {[%clk 1:12:19]} 72... Kc5
{[%clk 0:08:00]} 73. Ka8 {[%clk 1:12:39]} 73... Kc6 {[%clk 0:08:23]} 74. Ka7
{[%clk 1:13:02]} 74... Qb7# {[%clk 0:08:43]} 0-1

[Variant "Standard"]
[Site "Europe Echecs"]

[Event "Championnat du monde jeunes U12F"]
[Date "2024.11.16"]
[White "Huang, Lucia"]
[Black "Groselj, Mirjam"]
[WhiteElo "1621"]
[BlackElo "1470"]
[Round "2.38"]
[Result "1-0"]
[TimeControl "5400+30"]

1. e4 {[%clk 1:30:58]} 1... e5 {[%clk 1:30:50]} 2. Nf3 {[%clk 1:31:24]} 2... Nc6
{[%clk 1:31:09]} 3. Bc4 {[%clk 1:31:49]} 3... Bc5 {[%clk 1:31:12]} 4. c3 {[%clk
1:32:15]} 4... Nf6 {[%clk 1:31:10]} 5. d3 {[%clk 1:32:29]} 5... h6 {[%clk
1:30:40]} 6. Nbd2 {[%clk 1:32:44]} 6... O-O {[%clk 1:30:05]} 7. h3 {[%clk
1:32:53]} 7... d6 {[%clk 1:29:45]} 8. Bb3 {[%clk 1:32:45]} 8... Be6 {[%clk
1:28:43]} 9. Bc2 {[%clk 1:32:54]} 9... d5 {[%clk 1:26:24]} 10. O-O {[%clk
1:31:59]} 10... Nh7 {[%clk 1:22:32]} 11. Re1 {[%clk 1:28:28]} 11... f5 {[%clk
1:18:05]} 12. exd5 {[%clk 1:22:14]} 12... Qxd5 {[%clk 1:15:30]} 13. Bb3 {[%clk
1:20:26]} 13... Qd6 {[%clk 1:14:44]} 14. Bxe6+ {[%clk 1:09:34]} 14... Qxe6
{[%clk 1:12:33]} 15. Nxe5 {[%clk 1:06:52]} 15... Rae8 {[%clk 1:04:05]} 16. Nef3
{[%clk 1:05:48]} 16... Qg6 {[%clk 1:03:19]} 17. Nc4 {[%clk 1:02:49]} 17... f4
{[%clk 0:58:51]} 18. Rxe8 {[%clk 1:00:53]} 18... Qxe8 {[%clk 0:57:43]} 19. Qb3
{[%clk 1:01:00]} 19... Qe2 {[%clk 0:52:58]} 20. Nce5+ {[%clk 1:01:05]} 20... Kh8
{[%clk 0:51:15]} 21. Ng6# {[%clk 1:01:28]} 1-0

[Variant "Standard"]
[Site "Europe Echecs"]

[Event "Championnat du monde jeunes U12F"]
[Date "2024.11.16"]
[White "Prokofieva, Alexandra"]
[Black "Budhram, Kaylee"]
[WhiteElo "1467"]
[BlackElo "1614"]
[Round "2.39"]
[Result "0-1"]
[TimeControl "5400+30"]

1. e4 {[%clk 1:30:58]} 1... c6 {[%clk 1:31:19]} 2. d4 {[%clk 1:31:19]} 2... d5
{[%clk 1:31:42]} 3. f3 {[%clk 1:31:32]} 3... e6 {[%clk 1:31:18]} 4. Bd3 {[%clk
1:31:42]} 4... Nd7 {[%clk 1:29:56]} 5. Ne2 {[%clk 1:31:39]} 5... Qb6 {[%clk
1:21:09]} 6. c4 {[%clk 1:27:34]} 6... c5 {[%clk 0:45:15]} 7. Be3 {[%clk
1:25:10]} 7... dxe4 {[%clk 0:29:56]} 8. fxe4 {[%clk 1:24:56]} 8... Qxb2 9. Nd2
{[%clk 1:25:07]} 9... Qb6 {[%clk 0:27:01]} 10. O-O {[%clk 1:25:03]} 10... cxd4
{[%clk 0:21:18]} 11. Nxd4 {[%clk 1:24:56]} 11... Bc5 {[%clk 0:20:38]} 12. Rb1
{[%clk 1:24:06]} 12... Qd6 {[%clk 0:19:42]} 13. e5 Qxe5 {[%clk 0:14:36]} 14. Qf3
{[%clk 1:19:28]} 14... Bxd4 {[%clk 0:14:06]} 15. Bxd4 {[%clk 1:19:45]} 15...
Qxd4+ {[%clk 0:14:25]} 16. Kh1 {[%clk 1:19:43]} 16... Ngf6 {[%clk 0:14:17]} 17.
Ne4 {[%clk 1:17:36]} 17... h6 {[%clk 0:10:30]} 18. Rbd1 {[%clk 1:16:45]} 18...
Nxe4 {[%clk 0:07:10]} 19. Bxe4 {[%clk 1:17:05]} 19... Qf6 {[%clk 0:07:17]} 20.
Qb3 {[%clk 1:15:19]} 20... Qe7 {[%clk 0:04:21]} 21. Qg3 {[%clk 1:08:27]} 21...
Qg5 {[%clk 0:02:25]} 22. Qb3 h5 {[%clk 0:01:51]} 23. Rf3 {[%clk 1:01:13]} 23...
h4 {[%clk 0:01:38]} 24. h3 {[%clk 0:59:07]} 24... a6 25. Qa4 {[%clk 0:56:12]}
25... Qe7 {[%clk 0:01:01]} 26. Rdf1 {[%clk 0:54:12]} 26... f6 {[%clk 0:01:07]}
27. Bg6+ {[%clk 0:52:45]} 27... Kf8 {[%clk 0:01:28]} 28. R3f2 {[%clk 0:51:40]}
28... f5 {[%clk 0:01:43]} 29. Qd1 {[%clk 0:49:42]} 29... Ne5 {[%clk 0:01:00]}
30. Bh5 {[%clk 0:48:20]} 30... Nxc4 {[%clk 0:01:17]} 31. Re1 {[%clk 0:47:00]}
31... Nd6 32. Be2 {[%clk 0:43:18]} 32... Ne4 {[%clk 0:01:07]} 33. Rf3 {[%clk
0:42:08]} 33... Ng3+ 34. Kg1 {[%clk 0:42:19]} 34... Qc5+ {[%clk 0:01:25]} 35.
Kh2 {[%clk 0:41:44]} 35... Qc7 {[%clk 0:01:41]} 36. Kg1 {[%clk 0:41:56]} 36...
Nxe2+ {[%clk 0:01:12]} 37. Qxe2 {[%clk 0:41:57]} 37... Bd7 {[%clk 0:01:13]} 38.
Rf2 {[%clk 0:41:47]} 38... Rd8 {[%clk 0:01:25]} 39. Qb2 {[%clk 0:40:45]} 39...
Kf7 {[%clk 0:01:22]} 40. Qb3 {[%clk 0:40:08]} 40... g6 {[%clk 0:01:27]} 41. Qb2
{[%clk 0:39:54]} 41... Rhe8 {[%clk 0:01:21]} 42. Qb4 {[%clk 0:39:38]} 42... Rh8
{[%clk 0:01:35]} 43. Qb2 {[%clk 0:39:28]} 43... Rc8 {[%clk 0:01:51]} 44. Qb3
{[%clk 0:38:55]} 44... b5 {[%clk 0:01:55]} 45. Qe3 {[%clk 0:38:01]} 45... Qc3
{[%clk 0:01:50]} 46. Qa7 {[%clk 0:38:04]} 46... Qxe1+ {[%clk 0:01:27]} 47. Rf1
{[%clk 0:38:19]} 47... Qd2 {[%clk 0:01:47]} 48. Qxa6 {[%clk 0:38:14]} 48... Qe3+
{[%clk 0:01:58]} 49. Kh1 {[%clk 0:38:31]} 49... Rc2 {[%clk 0:00:56]} 50. Qb7
{[%clk 0:38:49]} 50... Ke7 {[%clk 0:00:55]} 51. Qf3 {[%clk 0:38:26]} 51... Qxf3
{[%clk 0:01:07]} 52. Rxf3 {[%clk 0:38:46]} 52... Bc6 {[%clk 0:01:19]} 53. Ra3
{[%clk 0:38:57]} 53... Rxg2 54. Ra7+ {[%clk 0:39:11]} 54... Kf6 {[%clk 0:01:21]}
55. Rc7 {[%clk 0:39:25]} 55... Rc2+ {[%clk 0:01:30]} 56. Kg1 {[%clk 0:39:39]}
56... Be4 {[%clk 0:01:53]} 57. Rxc2 {[%clk 0:39:49]} 57... Bxc2 {[%clk 0:02:16]}
58. Kf2 {[%clk 0:40:10]} 58... Ra8 {[%clk 0:02:38]} 59. Ke2 {[%clk 0:40:32]}
59... Rxa2 {[%clk 0:02:56]} 60. Kd2 {[%clk 0:40:55]} 60... Be4+ {[%clk 0:03:17]}
61. Kc1 {[%clk 0:41:11]} 61... b4 {[%clk 0:03:34]} 62. Kd1 {[%clk 0:41:30]}
62... b3 {[%clk 0:03:48]} 63. Kc1 {[%clk 0:41:44]} 63... b2+ {[%clk 0:04:07]}
64. Kd2 {[%clk 0:41:57]} 64... b1=Q+ {[%clk 0:04:20]} 65. Kc3 {[%clk 0:42:00]}
65... Qd3+ {[%clk 0:03:49]} 66. Kb4 {[%clk 0:42:20]} 66... Rb2+ {[%clk 0:03:52]}
67. Kc5 {[%clk 0:42:25]} 67... Qd5# {[%clk 0:04:09]} 0-1

[Variant "Standard"]
[Site "Europe Echecs"]

[Event "Championnat du monde jeunes U12F"]
[Date "2024.11.16"]
[White "Ordonez Alarcon, Daniela"]
[Black "Jung, Minju"]
[WhiteElo "1606"]
[BlackElo "1457"]
[Round "2.40"]
[Result "1-0"]
[TimeControl "5400+30"]

1. d4 {[%clk 1:30:58]} 1... d5 {[%clk 1:30:05]} 2. c4 {[%clk 1:31:20]} 2... e6
{[%clk 1:29:50]} 3. Nc3 {[%clk 1:31:43]} 3... c5 {[%clk 1:29:03]} 4. e3 {[%clk
1:23:40]} 4... Nf6 {[%clk 1:25:47]} 5. Nf3 {[%clk 1:21:51]} 5... Be7 {[%clk
1:21:39]} 6. a3 {[%clk 1:16:07]} 6... cxd4 {[%clk 1:15:46]} 7. exd4 {[%clk
1:13:26]} 7... O-O {[%clk 1:12:45]} 8. Bd3 {[%clk 1:10:55]} 8... Nc6 {[%clk
1:09:23]} 9. O-O {[%clk 1:10:01]} 9... dxc4 {[%clk 1:04:43]} 10. Bxc4 {[%clk
1:10:12]} 10... h6 {[%clk 1:01:51]} 11. h3 {[%clk 1:09:39]} 11... Bd6 {[%clk
0:59:42]} 12. Re1 {[%clk 1:03:26]} 12... Re8 {[%clk 0:57:57]} 13. Nb5 {[%clk
1:02:17]} 13... a6 {[%clk 0:55:08]} 14. Nxd6 Qxd6 {[%clk 0:54:35]} 15. Be3
{[%clk 0:59:39]} 15... Na5 {[%clk 0:43:46]} 16. Bd3 {[%clk 0:57:37]} 16... Nc6
{[%clk 0:39:59]} 17. Bc4 {[%clk 0:37:00]} 17... b5 {[%clk 0:33:16]} 18. Ba2
{[%clk 0:36:06]} 18... Bb7 {[%clk 0:30:12]} 19. Qd2 {[%clk 0:32:42]} 19... Ne7
{[%clk 0:26:02]} 20. Bf4 {[%clk 0:31:17]} 20... Qd8 {[%clk 0:24:16]} 21. Ne5
{[%clk 0:29:36]} 21... Nf5 {[%clk 0:20:59]} 22. Rad1 {[%clk 0:25:30]} 22... Rc8
{[%clk 0:17:15]} 23. Bb1 {[%clk 0:21:41]} 23... Qd5 {[%clk 0:13:41]} 24. f3
{[%clk 0:20:41]} 24... Nh5 {[%clk 0:10:42]} 25. Be4 {[%clk 0:18:13]} 25... Qd8
{[%clk 0:07:28]} 26. Bxb7 {[%clk 0:18:23]} 26... Rc7 {[%clk 0:06:20]} 27. Be4
{[%clk 0:18:15]} 27... Nxf4 {[%clk 0:04:08]} 28. Qxf4 {[%clk 0:18:34]} 28... f6
{[%clk 0:04:16]} 29. Ng4 {[%clk 0:13:25]} 29... Nxd4 {[%clk 0:02:29]} 30. Bh7+
{[%clk 0:13:25]} 30... Kxh7 {[%clk 0:02:39]} 31. Qxd4 {[%clk 0:13:54]} 31... Qe7
{[%clk 0:02:06]} 32. Qd3+ {[%clk 0:13:45]} 32... Kh8 {[%clk 0:02:18]} 33. Qd6
{[%clk 0:13:40]} 33... Qf7 {[%clk 0:02:20]} 34. Qxa6 {[%clk 0:13:55]} 34... Rc5
{[%clk 0:01:50]} 35. Qb6 {[%clk 0:12:33]} 35... Rf5 {[%clk 0:01:36]} 36. Rd8
Rxd8 {[%clk 0:01:49]} 37. Qxd8+ {[%clk 0:12:23]} 37... Kh7 {[%clk 0:02:14]} 38.
Qd3 {[%clk 0:12:31]} 38... Qa7+ {[%clk 0:02:33]} 39. Qe3 {[%clk 0:11:50]} 39...
Qxe3+ {[%clk 0:01:47]} 40. Rxe3 {[%clk 0:12:14]} 40... e5 {[%clk 0:01:42]} 41.
Rb3 {[%clk 0:12:38]} 41... e4 {[%clk 0:01:46]} 42. fxe4 {[%clk 0:13:02]} 42...
Rc5 {[%clk 0:01:58]} 43. Rc3 {[%clk 0:12:59]} 43... Rh5 {[%clk 0:01:50]} 44. b4
{[%clk 0:13:22]} 44... Kg6 {[%clk 0:01:58]} 45. Rc5 {[%clk 0:13:41]} 45... Rxc5
{[%clk 0:01:59]} 46. bxc5 {[%clk 0:14:05]} 46... Kf7 {[%clk 0:02:19]} 47. e5
{[%clk 0:13:51]} 47... fxe5 {[%clk 0:02:34]} 48. Nxe5+ {[%clk 0:14:14]} 48...
Ke6 {[%clk 0:03:02]} 49. c6 {[%clk 0:14:26]} 49... Kd6 {[%clk 0:03:27]} 50. Kf2
{[%clk 0:14:46]} 50... g5 {[%clk 0:03:41]} 51. g4 {[%clk 0:14:22]} 51... Kc7
{[%clk 0:04:06]} 52. Ke3 {[%clk 0:14:46]} 52... Kc8 {[%clk 0:03:37]} 53. Kd4
{[%clk 0:13:03]} 53... Kc7 {[%clk 0:03:37]} 54. Kc5 {[%clk 0:13:18]} 54... Kc8
{[%clk 0:03:38]} 55. Kb6 {[%clk 0:13:08]} 55... Kb8 {[%clk 0:03:53]} 56. c7+
{[%clk 0:13:33]} 56... Kc8 {[%clk 0:04:20]} 57. Nf7 {[%clk 0:13:54]} 57... b4
{[%clk 0:04:37]} 58. Nd6+ {[%clk 0:14:11]} 58... Kd7 {[%clk 0:04:27]} 59. c8=Q+
{[%clk 0:14:31]} 59... Kxd6 {[%clk 0:04:48]} 60. Qc5+ {[%clk 0:14:56]} 60... Ke6
{[%clk 0:05:00]} 61. axb4 {[%clk 0:14:55]} 61... Kf6 {[%clk 0:04:46]} 62. Kc6
{[%clk 0:15:02]} 62... Ke6 {[%clk 0:04:57]} 63. Qf5+ {[%clk 0:15:13]} 63... Ke7
{[%clk 0:05:04]} 64. Kd5 {[%clk 0:15:34]} 64... Ke8 {[%clk 0:05:20]} 65. Kd6
{[%clk 0:15:19]} 65... Kd8 {[%clk 0:05:30]} 66. Qd7# {[%clk 0:15:45]} 1-0

[Variant "Standard"]
[Site "Europe Echecs"]

[Event "Championnat du monde jeunes U12F"]
[Date "2024.11.16"]
[White "Liu, Lillian Yu-Ning"]
[Black "Telyuk, Anastasiya"]
[WhiteElo "1456"]
[BlackElo "1603"]
[Round "2.41"]
[Result "0-1"]
[TimeControl "5400+30"]

1. e4 {[%clk 1:30:58]} 1... c5 {[%clk 1:30:53]} 2. Nf3 {[%clk 1:31:19]} 2... e6
{[%clk 1:31:08]} 3. Nc3 {[%clk 1:31:41]} 3... Nc6 {[%clk 1:31:24]} 4. Bc4 {[%clk
1:31:58]} 4... Nf6 {[%clk 1:31:22]} 5. O-O {[%clk 1:32:11]} 5... d5 {[%clk
1:30:30]} 6. exd5 {[%clk 1:28:51]} 6... exd5 {[%clk 1:30:46]} 7. Re1+ {[%clk
1:27:24]} 7... Be7 {[%clk 1:30:56]} 8. Bb5 {[%clk 1:23:47]} 8... O-O {[%clk
1:28:51]} 9. Bxc6 {[%clk 1:21:22]} 9... bxc6 {[%clk 1:29:10]} 10. d3 {[%clk
1:19:44]} 10... Qc7 {[%clk 1:26:23]} 11. h3 {[%clk 1:12:59]} 11... Bf5 {[%clk
1:22:50]} 12. Bd2 {[%clk 1:03:26]} 12... Rfe8 {[%clk 1:19:52]} 13. d4 {[%clk
1:01:29]} 13... cxd4 {[%clk 1:16:43]} 14. Nxd4 {[%clk 1:01:45]} 14... Bg6 {[%clk
1:16:02]} 15. Be3 {[%clk 0:54:59]} 15... c5 {[%clk 1:15:19]} 16. Nde2 {[%clk
0:54:06]} 16... d4 {[%clk 1:15:31]} 17. Bf4 {[%clk 0:53:42]} 17... Qc6 {[%clk
1:12:01]} 18. Nb1 {[%clk 0:49:33]} 18... Nd5 {[%clk 1:09:46]} 19. Bd2 {[%clk
0:47:25]} 19... Bd6 {[%clk 1:01:30]} 20. c3 {[%clk 0:46:21]} 20... d3 {[%clk
0:58:21]} 21. Nc1 {[%clk 0:40:07]} 21... Rxe1+ {[%clk 0:57:24]} 22. Bxe1 {[%clk
0:39:47]} 22... Nf4 {[%clk 0:56:30]} 23. f3 {[%clk 0:36:39]} 23... Re8 {[%clk
0:53:53]} 24. Kh1 {[%clk 0:30:21]} 24... Qd5 {[%clk 0:52:36]} 25. Qd2 {[%clk
0:27:03]} 25... Qg5 {[%clk 0:51:23]} 0-1

[Variant "Standard"]
[Site "Europe Echecs"]